[Event "*** SCC Grand Prix: Titled Tuesday Blitz"]
[Site "Chess.com"]
[Date "2020.08.04"]
[Round "5"]
[White "csati17"]
[Black "Dedic8"]
[Result "1-0"]
[WhiteElo "2608"]
[BlackElo "2780"]
[TimeControl "180+1"]
[EndTime "14:40:08 PDT"]
[Termination "csati17 won by resignation"]

1. c4 {[%clk 0:03:00.9]} 1... e5 {[%clk 0:02:59]} 2. g3 {[%clk 0:03:00.9]} 2...
Nf6 {[%clk 0:02:58]} 3. Bg2 {[%clk 0:03:00.8]} 3... c6 {[%clk 0:02:58.7]} 4. Nf3
{[%clk 0:02:59.7]} 4... e4 {[%clk 0:02:59.1]} 5. Nd4 {[%clk 0:02:59.8]} 5... Qb6
{[%clk 0:02:59.8]} 6. Nc2 {[%clk 0:02:58.2]} 6... Bc5 {[%clk 0:02:59.7]} 7. O-O
{[%clk 0:02:54]} 7... d5 {[%clk 0:02:59]} 8. d3 {[%clk 0:02:49.8]} 8... exd3
{[%clk 0:02:54.5]} 9. Qxd3 {[%clk 0:02:50.7]} 9... dxc4 {[%clk 0:02:49.1]} 10.
Qxc4 {[%clk 0:02:51]} 10... Be6 {[%clk 0:02:49.4]} 11. Qd3 {[%clk 0:02:51.5]}
11... Nbd7 {[%clk 0:02:48.3]} 12. Nc3 {[%clk 0:02:47.4]} 12... Ne5 {[%clk
0:02:42.8]} 13. Na4 {[%clk 0:02:37.1]} 13... Nxd3 {[%clk 0:02:23.2]} 14. Nxb6
{[%clk 0:02:37.2]} 14... Bxb6 {[%clk 0:01:41.8]} 15. exd3 {[%clk 0:02:36.6]}
15... O-O-O {[%clk 0:01:42.7]} 16. d4 {[%clk 0:02:19.5]} 16... Bf5 {[%clk
0:01:34.8]} 17. Ne3 {[%clk 0:02:19.5]} 17... Bg6 {[%clk 0:01:35.5]} 18. d5
{[%clk 0:02:16.4]} 18... cxd5 {[%clk 0:01:33.6]} 19. a4 {[%clk 0:02:09.2]} 19...
Bc7 {[%clk 0:01:22]} 20. Bd2 {[%clk 0:02:08.6]} 20... d4 {[%clk 0:01:20.9]} 21.
Nc4 {[%clk 0:02:08.9]} 21... Kb8 {[%clk 0:01:18.1]} 22. Rfe1 {[%clk 0:02:03.2]}
22... Rhe8 {[%clk 0:01:17.3]} 23. Rxe8 {[%clk 0:01:51.6]} 23... Rxe8 {[%clk
0:01:18.2]} 24. a5 {[%clk 0:01:52.3]} 24... a6 {[%clk 0:01:18]} 25. Rc1 {[%clk
0:01:42.8]} 25... Ne4 {[%clk 0:01:16.5]} 26. Bb4 {[%clk 0:01:38.9]} 26... d3
{[%clk 0:00:52.4]} 27. Nb6 {[%clk 0:01:10.5]} 27... Rd8 {[%clk 0:00:36.2]} 28.
Rd1 {[%clk 0:01:06.2]} 28... Nf6 {[%clk 0:00:26.7]} 29. Bd2 {[%clk 0:00:51.3]}
29... h5 {[%clk 0:00:25.8]} 30. Rc1 {[%clk 0:00:47.4]} 30... h4 {[%clk
0:00:23.9]} 31. Rc4 {[%clk 0:00:33.9]} 31... hxg3 {[%clk 0:00:22.4]} 32. hxg3
{[%clk 0:00:34.8]} 32... Re8 {[%clk 0:00:17.6]} 33. Bf3 {[%clk 0:00:32]} 33...
Bh5 {[%clk 0:00:14.1]} 34. Bxh5 {[%clk 0:00:29.7]} 34... Nxh5 {[%clk 0:00:15]}
35. Nd7+ {[%clk 0:00:29.9]} 35... Kc8 {[%clk 0:00:15.6]} 36. Nb6+ {[%clk
0:00:30.2]} 36... Kd8 {[%clk 0:00:14.9]} 37. Rd4+ {[%clk 0:00:26.7]} 37... Ke7
{[%clk 0:00:15.4]} 38. Rd7+ {[%clk 0:00:27.1]} 38... Ke6 {[%clk 0:00:15.8]} 39.
Rxc7 {[%clk 0:00:26.9]} 1-0

[Event "*** SCC Grand Prix: Titled Tuesday Blitz"]
[Site "Chess.com"]
[Date "2020.08.04"]
[Round "5"]
[White "Chesswizard_2007"]
[Black "rynos0411"]
[Result "1-0"]
[WhiteElo "2511"]
[BlackElo "2363"]
[TimeControl "180+1"]
[EndTime "14:40:08 PDT"]
[Termination "Chesswizard_2007 won on time"]

1. Nf3 {[%clk 0:03:00.9]} 1... Nf6 {[%clk 0:02:58.3]} 2. b3 {[%clk 0:02:54.9]}
2... g6 {[%clk 0:02:57.2]} 3. Bb2 {[%clk 0:02:51.1]} 3... Bg7 {[%clk 0:02:58.1]}
4. e3 {[%clk 0:02:51.8]} 4... O-O {[%clk 0:02:58.3]} 5. d4 {[%clk 0:02:52.4]}
5... d6 {[%clk 0:02:58.9]} 6. Be2 {[%clk 0:02:49.9]} 6... Nc6 {[%clk 0:02:58.6]}
7. O-O {[%clk 0:02:49.5]} 7... e5 {[%clk 0:02:59.2]} 8. dxe5 {[%clk 0:02:49.1]}
8... Ng4 {[%clk 0:02:55.9]} 9. c4 {[%clk 0:02:48.9]} 9... Ngxe5 {[%clk
0:02:53.4]} 10. Nxe5 {[%clk 0:02:48.6]} 10... Nxe5 {[%clk 0:02:53.2]} 11. Nc3
{[%clk 0:02:48.6]} 11... Bf5 {[%clk 0:02:51]} 12. h3 {[%clk 0:02:46.1]} 12...
Re8 {[%clk 0:02:49.1]} 13. Qd2 {[%clk 0:02:44.8]} 13... Qd7 {[%clk 0:02:42.6]}
14. Nd5 {[%clk 0:02:43.2]} 14... c6 {[%clk 0:02:32.3]} 15. Nf4 {[%clk
0:02:35.7]} 15... Rad8 {[%clk 0:02:30.4]} 16. Rad1 {[%clk 0:02:33]} 16... Qe7
{[%clk 0:02:17.7]} 17. Bd4 {[%clk 0:02:27.1]} 17... b6 {[%clk 0:02:12.4]} 18. a4
{[%clk 0:02:14.3]} 18... Qc7 {[%clk 0:01:42]} 19. a5 {[%clk 0:01:54.6]} 19...
Be4 {[%clk 0:01:33.2]} 20. f3 {[%clk 0:01:48.1]} 20... Bf5 {[%clk 0:01:29.6]}
21. e4 {[%clk 0:01:47.5]} 21... Be6 {[%clk 0:01:24.9]} 22. Kh1 {[%clk
0:01:44.9]} 22... Rd7 {[%clk 0:01:00.9]} 23. Nxe6 {[%clk 0:01:45.1]} 23... fxe6
{[%clk 0:00:53.1]} 24. f4 {[%clk 0:01:45.5]} 24... Nf7 {[%clk 0:00:52.1]} 25.
Bxg7 {[%clk 0:01:45.1]} 25... Kxg7 {[%clk 0:00:53]} 26. a6 {[%clk 0:01:43.4]}
26... c5 {[%clk 0:00:48.3]} 27. Qc3+ {[%clk 0:01:38.6]} 27... Kg8 {[%clk
0:00:48.2]} 28. Bg4 {[%clk 0:01:37.4]} 28... Nd8 {[%clk 0:00:45.8]} 29. f5
{[%clk 0:01:36.6]} 29... Nc6 {[%clk 0:00:18.9]} 30. fxe6 {[%clk 0:01:22.6]}
30... Rde7 {[%clk 0:00:19.1]} 31. Qg3 {[%clk 0:01:15.5]} 31... Ne5 {[%clk
0:00:14.8]} 32. Rf6 {[%clk 0:01:08.6]} 32... Qc6 {[%clk 0:00:07.8]} 33. Qf4
{[%clk 0:00:53]} 33... Kg7 {[%clk 0:00:04.5]} 34. Rf1 {[%clk 0:00:51.6]} 34...
Qc7 {[%clk 0:00:02.7]} 35. h4 {[%clk 0:00:45.6]} 35... Nxg4 {[%clk 0:00:02.2]}
36. Qxg4 {[%clk 0:00:46.5]} 36... Qc6 {[%clk 0:00:01.2]} 37. Rf7+ {[%clk
0:00:38]} 37... Rxf7 {[%clk 0:00:01.6]} 38. Rxf7+ {[%clk 0:00:38.7]} 38... Kg8
{[%clk 0:00:01.7]} 39. h5 {[%clk 0:00:36.7]} 1-0

[Event "*** SCC Grand Prix: Titled Tuesday Blitz"]
[Site "Chess.com"]
[Date "2020.08.04"]
[Round "5"]
[White "The_Machine04"]
[Black "amiralfio"]
[Result "1-0"]
[WhiteElo "2250"]
[BlackElo "2438"]
[TimeControl "180+1"]
[EndTime "14:40:08 PDT"]
[Termination "The_Machine04 won on time"]

1. d4 {[%clk 0:02:59.8]} 1... d5 {[%clk 0:02:59.2]} 2. Bf4 {[%clk 0:02:59.1]}
2... Nf6 {[%clk 0:02:56.2]} 3. e3 {[%clk 0:02:55.2]} 3... e6 {[%clk 0:02:44.8]}
4. Bd3 {[%clk 0:02:54.9]} 4... Bd6 {[%clk 0:02:42.6]} 5. Bg3 {[%clk 0:02:53.9]}
5... c5 {[%clk 0:02:41.6]} 6. c3 {[%clk 0:02:49]} 6... Qc7 {[%clk 0:02:41.1]} 7.
Nd2 {[%clk 0:02:45.3]} 7... Nbd7 {[%clk 0:02:38.5]} 8. f4 {[%clk 0:02:44]} 8...
O-O {[%clk 0:02:06.8]} 9. Ngf3 {[%clk 0:02:43.5]} 9... b6 {[%clk 0:02:06.2]} 10.
O-O {[%clk 0:02:40.9]} 10... Bb7 {[%clk 0:02:06.4]} 11. Ne5 {[%clk 0:02:40.4]}
11... Ne4 {[%clk 0:02:05.6]} 12. Be1 {[%clk 0:02:33.2]} 12... f6 {[%clk
0:01:55.4]} 13. Nxd7 {[%clk 0:02:32.6]} 13... Qxd7 {[%clk 0:01:56.3]} 14. Qf3
{[%clk 0:02:32.8]} 14... f5 {[%clk 0:01:51]} 15. Qe2 {[%clk 0:02:32.2]} 15...
Rac8 {[%clk 0:01:48.4]} 16. Nf3 {[%clk 0:02:29.2]} 16... Qe7 {[%clk 0:01:37.5]}
17. Ne5 {[%clk 0:02:05]} 17... g5 {[%clk 0:01:19.5]} 18. Bxe4 {[%clk 0:01:52.3]}
18... dxe4 {[%clk 0:01:09.5]} 19. g3 {[%clk 0:01:47.5]} 19... Bxe5 {[%clk
0:00:45]} 20. dxe5 {[%clk 0:01:46.3]} 20... Rcd8 {[%clk 0:00:40.7]} 21. Rd1
{[%clk 0:01:40.8]} 21... Rd3 {[%clk 0:00:39.7]} 22. Bf2 {[%clk 0:01:26.3]} 22...
Rfd8 {[%clk 0:00:37.3]} 23. Qc2 {[%clk 0:01:22.8]} 23... Qd7 {[%clk 0:00:32.7]}
24. Rxd3 {[%clk 0:01:16.2]} 24... exd3 {[%clk 0:00:33.6]} 25. Qd2 {[%clk
0:01:16.2]} 25... Qd5 {[%clk 0:00:32]} 26. e4 {[%clk 0:01:11.7]} 26... Qxe4
{[%clk 0:00:31]} 27. Be3 {[%clk 0:01:12.1]} 27... Qh1+ {[%clk 0:00:29.6]} 28.
Kf2 {[%clk 0:01:11.2]} 28... Qxh2+ {[%clk 0:00:11.6]} 29. Ke1 {[%clk 0:01:10.1]}
29... Qe2+ {[%clk 0:00:03.8]} 30. Qxe2 {[%clk 0:01:09.5]} 30... dxe2 {[%clk
0:00:04.7]} 31. Rf2 {[%clk 0:01:04.3]} 31... Ba6 {[%clk 0:00:04.9]} 32. Bd2
{[%clk 0:01:02.4]} 32... g4 {[%clk 0:00:05.3]} 33. Rh2 {[%clk 0:00:50.3]} 33...
Bd3 {[%clk 0:00:02.1]} 34. Rh6 {[%clk 0:00:45.1]} 34... Kg7 {[%clk 0:00:02.4]}
35. Rxe6 {[%clk 0:00:44.2]} 35... Bc4 {[%clk 0:00:02.7]} 36. Rd6 {[%clk
0:00:41.5]} 1-0

[Event "*** SCC Grand Prix: Titled Tuesday Blitz"]
[Site "Chess.com"]
[Date "2020.08.04"]
[Round "5"]
[White "KuzubovYuriy"]
[Black "ftorodent"]
[Result "1-0"]
[WhiteElo "2836"]
[BlackElo "2662"]
[TimeControl "180+1"]
[EndTime "14:40:09 PDT"]
[Termination "KuzubovYuriy won on time"]

1. d4 {[%clk 0:03:00.9]} 1... d5 {[%clk 0:02:59.4]} 2. c4 {[%clk 0:03:00]} 2...
e6 {[%clk 0:02:59.5]} 3. Nc3 {[%clk 0:02:59.6]} 3... Be7 {[%clk 0:02:59.6]} 4.
Nf3 {[%clk 0:02:55.8]} 4... Nf6 {[%clk 0:02:58.6]} 5. Bf4 {[%clk 0:02:54.2]}
5... O-O {[%clk 0:02:58]} 6. e3 {[%clk 0:02:54.5]} 6... Nbd7 {[%clk 0:02:57.3]}
7. cxd5 {[%clk 0:02:53.2]} 7... Nxd5 {[%clk 0:02:56.4]} 8. Nxd5 {[%clk
0:02:52.8]} 8... exd5 {[%clk 0:02:56.6]} 9. Bd3 {[%clk 0:02:52.7]} 9... c5
{[%clk 0:02:47.7]} 10. O-O {[%clk 0:02:47.9]} 10... c4 {[%clk 0:02:21.9]} 11.
Bc2 {[%clk 0:02:47.3]} 11... Nf6 {[%clk 0:02:22]} 12. Ne5 {[%clk 0:02:42.4]}
12... Be6 {[%clk 0:02:18.8]} 13. g4 {[%clk 0:02:22.8]} 13... Rc8 {[%clk
0:02:09.8]} 14. Kh1 {[%clk 0:02:17.7]} 14... b5 {[%clk 0:01:55.6]} 15. f3 {[%clk
0:02:00.9]} 15... Nd7 {[%clk 0:01:52.4]} 16. Qb1 {[%clk 0:01:53.4]} 16... g6
{[%clk 0:01:44.4]} 17. Bg3 {[%clk 0:01:43.7]} 17... Nxe5 {[%clk 0:01:39.3]} 18.
Bxe5 {[%clk 0:01:39.8]} 18... Bf6 {[%clk 0:01:28.2]} 19. Qe1 {[%clk 0:01:34.5]}
19... Bxe5 {[%clk 0:01:22.8]} 20. dxe5 {[%clk 0:01:34.4]} 20... d4 {[%clk
0:01:23]} 21. exd4 {[%clk 0:01:28.3]} 21... Qxd4 {[%clk 0:01:22.3]} 22. Qc3
{[%clk 0:01:27.1]} 22... Rfd8 {[%clk 0:01:13.5]} 23. Rad1 {[%clk 0:01:22.8]}
23... Qb6 {[%clk 0:00:56.6]} 24. a3 {[%clk 0:01:17.3]} 24... a5 {[%clk
0:00:55.5]} 25. Rd6 {[%clk 0:00:57.7]} 25... Rxd6 {[%clk 0:00:37.7]} 26. exd6
{[%clk 0:00:57.5]} 26... Qxd6 {[%clk 0:00:37.6]} 27. Qxa5 {[%clk 0:00:57.2]}
27... c3 {[%clk 0:00:37.1]} 28. bxc3 {[%clk 0:00:49.9]} 28... Qd2 {[%clk
0:00:36.6]} 29. Be4 {[%clk 0:00:46.4]} 29... Rxc3 {[%clk 0:00:28.2]} 30. Qxb5
{[%clk 0:00:36.5]} 30... Rxa3 {[%clk 0:00:17.9]} 31. Qb8+ {[%clk 0:00:35.9]}
31... Kg7 {[%clk 0:00:18.1]} 32. Qe5+ {[%clk 0:00:35.9]} 32... Kg8 {[%clk
0:00:15.6]} 33. Rb1 {[%clk 0:00:31.2]} 33... Rb3 {[%clk 0:00:02.1]} 34. Ra1
{[%clk 0:00:30.5]} 1-0

[Event "*** SCC Grand Prix: Titled Tuesday Blitz"]
[Site "Chess.com"]
[Date "2020.08.04"]
[Round "5"]
[White "BlueWizzard"]
[Black "Infernal_XaM"]
[Result "0-1"]
[WhiteElo "2702"]
[BlackElo "2918"]
[TimeControl "180+1"]
[EndTime "14:40:10 PDT"]
[Termination "Infernal_XaM won on time"]

1. e4 {[%clk 0:03:00.9]} 1... e5 {[%clk 0:02:59.4]} 2. Nf3 {[%clk 0:03:00.6]}
2... Nc6 {[%clk 0:02:58.4]} 3. d4 {[%clk 0:02:59]} 3... exd4 {[%clk 0:02:57.4]}
4. Nxd4 {[%clk 0:02:59.9]} 4... Qh4 {[%clk 0:02:57.5]} 5. Nc3 {[%clk 0:02:54.6]}
5... Bb4 {[%clk 0:02:55.9]} 6. Nb5 {[%clk 0:02:41.3]} 6... Ba5 {[%clk
0:02:53.2]} 7. Qd3 {[%clk 0:02:20.7]} 7... Nf6 {[%clk 0:02:47.8]} 8. Bd2 {[%clk
0:02:13.5]} 8... Nb4 {[%clk 0:02:43.1]} 9. Qe2 {[%clk 0:02:02]} 9... Nxc2+
{[%clk 0:02:41.2]} 10. Kd1 {[%clk 0:02:02]} 10... Nxa1 {[%clk 0:02:39.7]} 11.
Nd5 {[%clk 0:01:58]} 11... Bxd2 {[%clk 0:02:26.1]} 12. g3 {[%clk 0:01:48.8]}
12... Qh6 {[%clk 0:02:16.9]} 13. Ndxc7+ {[%clk 0:01:39.8]} 13... Kd8 {[%clk
0:02:14.5]} 14. Nxa8 {[%clk 0:01:38.4]} 14... Ba5 {[%clk 0:02:11.9]} 15. Nd6
{[%clk 0:01:33.3]} 15... Rf8 {[%clk 0:02:02.2]} 16. e5 {[%clk 0:00:54]} 16...
Ne8 {[%clk 0:02:02]} 17. Nc4 {[%clk 0:00:48.7]} 17... Qc6 {[%clk 0:01:35.2]} 18.
f3 {[%clk 0:00:48.8]} 18... Bb4 {[%clk 0:01:32.1]} 19. Qd3 {[%clk 0:00:38.7]}
19... b5 {[%clk 0:01:29.4]} 20. Nd2 {[%clk 0:00:26.4]} 20... Qxa8 {[%clk
0:01:19.8]} 21. Bh3 {[%clk 0:00:22.9]} 21... Qc6 {[%clk 0:01:17]} 22. Ke2 {[%clk
0:00:23.1]} 22... Nc2 {[%clk 0:01:14.3]} 23. Rc1 {[%clk 0:00:22.7]} 23... Nd4+
{[%clk 0:01:12.4]} 24. Qxd4 {[%clk 0:00:23.1]} 24... Qxc1 {[%clk 0:01:10.5]} 25.
Qxb4 {[%clk 0:00:23.2]} 25... d6 {[%clk 0:01:05.5]} 26. Qh4+ {[%clk 0:00:13]}
26... f6 {[%clk 0:01:02.7]} 27. e6 {[%clk 0:00:13.7]} 27... Qxb2 {[%clk
0:00:52.7]} 28. e7+ {[%clk 0:00:08.4]} 28... Kxe7 {[%clk 0:00:52.5]} 29. Bxc8
{[%clk 0:00:09.3]} 29... Qe5+ {[%clk 0:00:51]} 30. Kd1 {[%clk 0:00:09.8]} 30...
Nc7 {[%clk 0:00:48.5]} 31. Bb7 {[%clk 0:00:10.3]} 31... Rb8 {[%clk 0:00:44.4]}
32. Be4 {[%clk 0:00:08.4]} 32... h6 {[%clk 0:00:44]} 33. Qg4 {[%clk 0:00:08.4]}
33... Ne6 {[%clk 0:00:43.1]} 34. f4 {[%clk 0:00:08]} 34... Qa1+ {[%clk
0:00:41.6]} 35. Ke2 {[%clk 0:00:08.3]} 35... Qxa2 {[%clk 0:00:41.8]} 36. f5
{[%clk 0:00:07.6]} 36... Ng5 {[%clk 0:00:40.8]} 37. h4 {[%clk 0:00:07.9]} 37...
Nxe4 {[%clk 0:00:40.6]} 38. Qxe4+ {[%clk 0:00:07.7]} 38... Kf8 {[%clk
0:00:40.3]} 39. Kd1 {[%clk 0:00:08]} 39... Qa4+ {[%clk 0:00:39.5]} 0-1

[Event "*** SCC Grand Prix: Titled Tuesday Blitz"]
[Site "Chess.com"]
[Date "2020.08.04"]
[Round "5"]
[White "SiddharthGMJagadeesh"]
[Black "boasovietica"]
[Result "1-0"]
[WhiteElo "2589"]
[BlackElo "2415"]
[TimeControl "180+1"]
[EndTime "14:40:12 PDT"]
[Termination "SiddharthGMJagadeesh won by resignation"]

1. d4 {[%clk 0:03:00.9]} 1... Nf6 {[%clk 0:02:59.8]} 2. Nf3 {[%clk 0:03:00]}
2... g6 {[%clk 0:03:00]} 3. c3 {[%clk 0:03:00.4]} 3... Bg7 {[%clk 0:03:00.4]} 4.
Bg5 {[%clk 0:03:01]} 4... O-O {[%clk 0:02:59.4]} 5. Nbd2 {[%clk 0:03:01.4]} 5...
d5 {[%clk 0:02:59.9]} 6. e3 {[%clk 0:03:00.9]} 6... b6 {[%clk 0:03:00]} 7. Be2
{[%clk 0:03:01]} 7... Bb7 {[%clk 0:03:00.5]} 8. O-O {[%clk 0:03:01.4]} 8... Nbd7
{[%clk 0:03:01]} 9. a4 {[%clk 0:03:01.1]} 9... a6 {[%clk 0:03:00.7]} 10. a5
{[%clk 0:03:00.4]} 10... b5 {[%clk 0:03:00.6]} 11. b4 {[%clk 0:02:52.3]} 11...
Ne4 {[%clk 0:02:53.2]} 12. Nxe4 {[%clk 0:02:51.5]} 12... dxe4 {[%clk 0:02:53.4]}
13. Nd2 {[%clk 0:02:52.2]} 13... Nf6 {[%clk 0:02:39.3]} 14. Bxf6 {[%clk
0:02:49.7]} 14... exf6 {[%clk 0:02:29.1]} 15. Nb3 {[%clk 0:02:40.2]} 15... Bd5
{[%clk 0:02:23.9]} 16. Nc5 {[%clk 0:02:39.4]} 16... f5 {[%clk 0:02:22.3]} 17.
Qc2 {[%clk 0:02:39.5]} 17... Re8 {[%clk 0:02:13.4]} 18. c4 {[%clk 0:02:38.2]}
18... bxc4 {[%clk 0:02:11.4]} 19. Bxc4 {[%clk 0:02:39.1]} 19... f4 {[%clk
0:02:06.7]} 20. Bxa6 {[%clk 0:02:00.7]} 20... f3 {[%clk 0:02:01.4]} 21. gxf3
{[%clk 0:01:20.2]} 21... exf3 {[%clk 0:01:43.3]} 22. Kh1 {[%clk 0:01:17.6]}
22... Rxa6 {[%clk 0:00:39.8]} 23. Nxa6 {[%clk 0:01:13.8]} 23... Qc8 {[%clk
0:00:33.1]} 24. Nxc7 {[%clk 0:00:55.9]} 24... Re5 {[%clk 0:00:11.3]} 25. Rg1
{[%clk 0:00:25.7]} 25... Rxe3 {[%clk 0:00:07.8]} 26. fxe3 {[%clk 0:00:20.1]}
26... f2+ {[%clk 0:00:07.7]} 27. Rg2 {[%clk 0:00:20.6]} 27... Qh3 {[%clk
0:00:07.7]} 28. Qxf2 {[%clk 0:00:20.1]} 28... Bh6 {[%clk 0:00:04.2]} 29. Nxd5
{[%clk 0:00:16.9]} 29... Qe6 {[%clk 0:00:02.1]} 30. Nf4 {[%clk 0:00:16.5]} 1-0

[Event "*** SCC Grand Prix: Titled Tuesday Blitz"]
[Site "Chess.com"]
[Date "2020.08.04"]
[Round "5"]
[White "aa175"]
[Black "MVM2008"]
[Result "0-1"]
[WhiteElo "2460"]
[BlackElo "2242"]
[TimeControl "180+1"]
[EndTime "14:40:13 PDT"]
[Termination "MVM2008 won on time"]

1. d4 {[%clk 0:03:00.9]} 1... Nc6 {[%clk 0:02:56.4]} 2. Nf3 {[%clk 0:02:59.8]}
2... g6 {[%clk 0:02:53.7]} 3. Bf4 {[%clk 0:02:59.5]} 3... Bg7 {[%clk 0:02:53.2]}
4. e3 {[%clk 0:03:00]} 4... d6 {[%clk 0:02:53]} 5. Nbd2 {[%clk 0:02:59.9]} 5...
e5 {[%clk 0:02:50.2]} 6. dxe5 {[%clk 0:02:59.9]} 6... dxe5 {[%clk 0:02:49.4]} 7.
Bg5 {[%clk 0:03:00.4]} 7... Nge7 {[%clk 0:02:47.6]} 8. Bd3 {[%clk 0:02:56.6]}
8... h6 {[%clk 0:02:37.8]} 9. Bh4 {[%clk 0:02:52.6]} 9... g5 {[%clk 0:02:37.3]}
10. Bg3 {[%clk 0:02:52.3]} 10... f5 {[%clk 0:02:35.9]} 11. e4 {[%clk 0:02:22.8]}
11... f4 {[%clk 0:02:33.3]} 12. Bc4 {[%clk 0:02:16.3]} 12... fxg3 {[%clk
0:02:30.6]} 13. hxg3 {[%clk 0:02:15.1]} 13... Ng6 {[%clk 0:02:19.1]} 14. c3
{[%clk 0:01:44.3]} 14... Bg4 {[%clk 0:01:53.3]} 15. Qb3 {[%clk 0:01:25.9]} 15...
Qd7 {[%clk 0:01:49.1]} 16. O-O-O {[%clk 0:01:08.4]} 16... O-O-O {[%clk
0:01:29.8]} 17. Nh2 {[%clk 0:00:59.1]} 17... Bxd1 {[%clk 0:01:28.3]} 18. Rxd1
{[%clk 0:00:56.8]} 18... Qe7 {[%clk 0:01:22]} 19. Bd5 {[%clk 0:00:33.1]} 19...
Qc5 {[%clk 0:01:10.6]} 20. Ng4 {[%clk 0:00:14.2]} 20... Nge7 {[%clk 0:01:04]}
21. Nc4 {[%clk 0:00:02.7]} 21... Nxd5 {[%clk 0:00:52.3]} 22. exd5 {[%clk
0:00:02.5]} 22... Na5 {[%clk 0:00:47.7]} 23. Nxa5 {[%clk 0:00:02]} 23... Qxa5
{[%clk 0:00:48.6]} 24. Ne3 {[%clk 0:00:02.1]} 24... Qc5 {[%clk 0:00:42.5]} 25.
Nf5 {[%clk 0:00:01.5]} 25... Bf6 {[%clk 0:00:40.7]} 26. d6 {[%clk 0:00:02]}
26... cxd6 {[%clk 0:00:35.8]} 27. Qe6+ {[%clk 0:00:01.6]} 27... Kb8 {[%clk
0:00:32.4]} 28. Qxf6 {[%clk 0:00:01.6]} 28... Qxf2 {[%clk 0:00:29.8]} 29. Qe6
{[%clk 0:00:01.4]} 29... Rhe8 {[%clk 0:00:21.8]} 30. Ne7 {[%clk 0:00:01.2]}
30... Qf8 {[%clk 0:00:16.7]} 0-1

[Event "*** SCC Grand Prix: Titled Tuesday Blitz"]
[Site "Chess.com"]
[Date "2020.08.04"]
[Round "5"]
[White "PauloCesarCosta_sad"]
[Black "AGW2016"]
[Result "1/2-1/2"]
[WhiteElo "2230"]
[BlackElo "2427"]
[TimeControl "180+1"]
[EndTime "14:40:14 PDT"]
[Termination "Game drawn by repetition"]

1. Nf3 {[%clk 0:03:00.9]} 1... Nf6 {[%clk 0:03:00]} 2. d4 {[%clk 0:03:00.9]}
2... g6 {[%clk 0:03:00.5]} 3. g3 {[%clk 0:03:00.5]} 3... Bg7 {[%clk 0:03:01.2]}
4. Bg2 {[%clk 0:03:01.4]} 4... O-O {[%clk 0:03:01.8]} 5. O-O {[%clk 0:03:01.2]}
5... d6 {[%clk 0:03:02]} 6. c4 {[%clk 0:03:01.3]} 6... c5 {[%clk 0:03:02.7]} 7.
Nc3 {[%clk 0:02:59.6]} 7... Nc6 {[%clk 0:03:02.7]} 8. b3 {[%clk 0:02:59.3]} 8...
cxd4 {[%clk 0:02:51.9]} 9. Nxd4 {[%clk 0:02:55.5]} 9... Nxd4 {[%clk 0:02:52.8]}
10. Qxd4 {[%clk 0:02:54.8]} 10... Be6 {[%clk 0:02:53.7]} 11. Bb2 {[%clk
0:02:31.9]} 11... Nd5 {[%clk 0:02:44.6]} 12. Qd2 {[%clk 0:02:24]} 12... Nxc3
{[%clk 0:02:43]} 13. Bxc3 {[%clk 0:02:24.9]} 13... Bxc3 {[%clk 0:02:42]} 14.
Qxc3 {[%clk 0:02:25.1]} 14... Rb8 {[%clk 0:02:41.8]} 15. Qe3 {[%clk 0:02:15.6]}
15... a6 {[%clk 0:02:41.2]} 16. Rfd1 {[%clk 0:02:10.7]} 16... Qa5 {[%clk
0:02:39.3]} 17. a4 {[%clk 0:02:03.3]} 17... Qb4 {[%clk 0:02:33.7]} 18. Rd4
{[%clk 0:01:57.5]} 18... Rfc8 {[%clk 0:02:32]} 19. Rh4 {[%clk 0:01:51.7]} 19...
h5 {[%clk 0:02:28.6]} 20. Re4 {[%clk 0:01:43.4]} 20... Qc5 {[%clk 0:02:23.3]}
21. Rxe6 {[%clk 0:01:37.8]} 21... fxe6 {[%clk 0:02:22]} 22. Qxe6+ {[%clk
0:01:31.7]} 22... Kg7 {[%clk 0:02:17.7]} 23. Qxe7+ {[%clk 0:01:30.8]} 23... Kh6
{[%clk 0:02:18.2]} 24. Qe4 {[%clk 0:01:22]} 24... Rf8 {[%clk 0:02:13.4]} 25. e3
{[%clk 0:01:16.3]} 25... b5 {[%clk 0:02:11.5]} 26. cxb5 {[%clk 0:01:07.3]} 26...
axb5 {[%clk 0:02:11.5]} 27. a5 {[%clk 0:01:08.2]} 27... Qc3 {[%clk 0:02:07.1]}
28. Qd4 {[%clk 0:01:01.1]} 28... b4 {[%clk 0:01:36]} 29. a6 {[%clk 0:00:55.7]}
29... Qc2 {[%clk 0:01:23.6]} 30. f4 {[%clk 0:00:54.9]} 30... d5 {[%clk
0:01:01.3]} 31. Bxd5 {[%clk 0:00:49.7]} 31... Rbd8 {[%clk 0:01:00.6]} 32. a7
{[%clk 0:00:45]} 32... Rfe8 {[%clk 0:00:54.4]} 33. e4 {[%clk 0:00:38.1]} 33...
Rxd5 {[%clk 0:00:40.2]} 34. Qxd5 {[%clk 0:00:30.2]} 34... Qc3 {[%clk 0:00:37.5]}
35. a8=Q {[%clk 0:00:22.8]} 35... Rxa8 {[%clk 0:00:34]} 36. Qxa8 {[%clk
0:00:19.3]} 36... Qe3+ {[%clk 0:00:34.1]} 37. Kg2 {[%clk 0:00:18.6]} 37... Qe2+
{[%clk 0:00:34.5]} 38. Kg1 {[%clk 0:00:15.9]} 38... Qe3+ {[%clk 0:00:34.8]} 39.
Kf1 {[%clk 0:00:14.5]} 39... Qf3+ {[%clk 0:00:34.4]} 40. Ke1 {[%clk 0:00:13.3]}
40... Qe3+ {[%clk 0:00:34.8]} 41. Kd1 {[%clk 0:00:12.9]} 41... Qd3+ {[%clk
0:00:35.4]} 42. Ke1 {[%clk 0:00:09.1]} 42... Qe3+ {[%clk 0:00:35.1]} 43. Kf1
{[%clk 0:00:08.8]} 43... Qf3+ {[%clk 0:00:34.9]} 44. Kg1 {[%clk 0:00:08.1]}
44... Qe3+ {[%clk 0:00:35.4]} 1/2-1/2